[Event "Veteran-SM 65+ 2025"]
[Site "Uppsala, Sweden"]
[Date "2025.06.30"]
[Round "3.3"]
[White "Johansson, Jan"]
[Black "Korning, Peter"]
[Result "0-1"]
[TimeControl "90 min for 40 move + 30 min with an increment of 30 sec starting move 1"]
[WhiteTitle "IM"]
[WhiteFideId "1700103"]
[BlackFideId "1723332"]
[WhiteElo "2258"]
[BlackElo "1944"]

1. d4 {[%clk 01:29:59]} {[%emt 00:01:00]} d5 {[%clk 01:30:47]} {[%emt
00:00:13]} 2. Bg5 {[%clk 01:29:59]} {[%emt 00:00:30]} Nf6 {[%clk 01:30:12]}
{[%emt 00:01:05]} 3. e3 {[%clk 01:28:10]} {[%emt 00:02:19]} c5 {[%clk
01:28:40]} {[%emt 00:02:00]} 4. Bxf6 {[%clk 01:28:25]} {[%emt 00:00:16]} gxf6
{[%clk 01:28:39]} {[%emt 00:00:31]} 5. c3 {[%clk 01:25:42]} {[%emt 00:03:15]}
Qb6 {[%clk 01:19:15]} {[%emt 00:09:53]} 6. Qc2 {[%clk 01:22:49]} {[%emt
00:03:23]} Nc6 {[%clk 01:16:16]} {[%emt 00:03:28]} 7. Nd2 {[%clk 01:23:07]}
{[%emt 00:00:13]} cxd4 {[%clk 01:11:22]} {[%emt 00:05:24]} 8. exd4 {[%clk
01:22:22]} {[%emt 00:01:15]} Bd7 {[%clk 01:04:02]} {[%emt 00:07:49]} 9. Bd3
{[%clk 01:16:21]} {[%emt 00:06:31]} O-O-O {[%clk 00:58:24]} {[%emt 00:06:07]}
10. Ne2 {[%clk 01:07:11]} {[%emt 00:09:41]} Kb8 {[%clk 00:53:51]} {[%emt
00:05:03]} 11. Qb3 {[%clk 00:59:49]} {[%emt 00:07:52]} Qxb3 {[%clk 00:52:26]}
{[%emt 00:01:55]} 12. Nxb3 {[%clk 00:57:37]} {[%emt 00:02:42]} e6 {[%clk
00:49:07]} {[%emt 00:03:49]} 13. Ng3 {[%clk 00:53:26]} {[%emt 00:04:40]} h5
{[%clk 00:46:46]} {[%emt 00:02:50]} 14. h4 {[%clk 00:49:16]} {[%emt 00:04:40]}
Be7 {[%clk 00:36:25]} {[%emt 00:10:51]} 15. Be2 {[%clk 00:47:04]} {[%emt
00:02:44]} Rh7 {[%clk 00:31:33]} {[%emt 00:05:21]} 16. Nxh5 {[%clk 00:37:41]}
{[%emt 00:09:54]} Rdh8 {[%clk 00:30:24]} {[%emt 00:01:38]} 17. g4 {[%clk
00:38:04]} {[%emt 00:00:08]} f5 {[%clk 00:29:14]} {[%emt 00:01:39]} 18. Ng3
{[%clk 00:24:10]} {[%emt 00:14:25]} fxg4 {[%clk 00:26:38]} {[%emt 00:03:07]} 19.
Bxg4 {[%clk 00:23:17]} {[%emt 00:01:22]} Rxh4 {[%clk 00:25:57]} {[%emt
00:01:10]} 20. Rxh4 {[%clk 00:23:16]} {[%emt 00:00:31]} Rxh4 {[%clk 00:26:10]}
{[%emt 00:00:18]} 21. Bf3 {[%clk 00:23:15]} {[%emt 00:00:31]} Kc7 {[%clk
00:22:34]} {[%emt 00:04:06]} 22. Ke2 {[%clk 00:23:32]} {[%emt 00:00:13]} Bd6
{[%clk 00:21:20]} {[%emt 00:01:43]} 23. Rg1 {[%clk 00:23:49]} {[%emt 00:00:13]}
Ne7 {[%clk 00:19:59]} {[%emt 00:01:51]} 24. Ke1 {[%clk 00:16:08]} {[%emt
00:08:12]} Ng6 {[%clk 00:16:44]} {[%emt 00:03:43]} 25. Nh5 {[%clk 00:15:35]}
{[%emt 00:01:04]} Nf4 {[%clk 00:12:10]} {[%emt 00:05:04]} 26. Nxf4 {[%clk
00:15:12]} {[%emt 00:00:54]} Rxf4 {[%clk 00:12:12]} {[%emt 00:00:27]} 27. Be2
{[%clk 00:15:23]} {[%emt 00:00:20]} Be7 {[%clk 00:07:05]} {[%emt 00:05:37]} 28.
Nc1 {[%clk 00:15:09]} {[%emt 00:00:44]} f6 {[%clk 00:05:30]} {[%emt 00:02:05]}
29. Rg7 {[%clk 00:13:12]} {[%emt 00:02:27]} Kd6 {[%clk 00:05:26]} {[%emt
00:00:34]} 30. Nd3 {[%clk 00:13:10]} {[%emt 00:00:32]} Rh4 {[%clk 00:05:29]}
{[%emt 00:00:26]} 31. Kd2 {[%clk 00:05:44]} {[%emt 00:07:57]} b6 {[%clk
00:05:22]} {[%emt 00:00:36]} 32. Ne1 {[%clk 00:05:45]} {[%emt 00:00:29]} Be8
{[%clk 00:03:57]} {[%emt 00:01:55]} 33. Rg8 {[%clk 00:05:27]} {[%emt 00:00:49]}
Bc6 {[%clk 00:03:47]} {[%emt 00:00:39]} 34. Bf3 {[%clk 00:05:17]} {[%emt
00:00:41]} Rh6 {[%clk 00:03:47]} {[%emt 00:00:29]} 35. Nd3 {[%clk 00:05:28]}
{[%emt 00:00:21]} a5 {[%clk 00:02:55]} {[%emt 00:01:22]} 36. Nf4 {[%clk
00:03:51]} {[%emt 00:02:06]} f5 {[%clk 00:02:33]} {[%emt 00:00:52]} 37. Ke1
{[%clk 00:03:12]} {[%emt 00:01:09]} Bf6 {[%clk 00:02:05]} {[%emt 00:00:57]} 38.
Rb8 {[%clk 00:03:12]} {[%emt 00:00:30]} Kc7 {[%clk 00:01:53]} {[%emt 00:00:42]}
39. Rf8 {[%clk 00:03:25]} {[%emt 00:00:17]} Kd6 {[%clk 00:02:15]} {[%emt
00:00:08]} 40. Nh5 {[%clk 00:03:24]} {[%emt 00:00:31]} Be7 {[%clk 00:02:13]}
{[%emt 00:00:33]} 41. Rb8 {[%clk 00:02:39]} {[%emt 00:01:15]} Kc7 {[%clk
00:01:35]} {[%emt 00:01:08]} 42. Rg8 {[%clk 00:29:32]} {[%emt 00:03:36]} Kd6
{[%clk 00:27:47]} {[%emt 00:04:18]} 43. Kd2 {[%clk 00:29:49]} {[%emt 00:00:13]}
Rh7 {[%clk 00:22:33]} {[%emt 00:05:44]} 44. Rg6 {[%clk 00:27:31]} {[%emt
00:02:48]} Be8 {[%clk 00:20:24]} {[%emt 00:02:39]} 45. Rg7 {[%clk 00:27:51]}
{[%emt 00:00:11]} Rxh5 {[%clk 00:18:32]} {[%emt 00:02:22]} 46. Bxh5 {[%clk
00:28:16]} {[%emt 00:00:05]} Bxh5 {[%clk 00:18:52]} {[%emt 00:00:09]} 47. Rg8
{[%clk 00:28:42]} {[%emt 00:00:04]} Bf7 {[%clk 00:16:12]} {[%emt 00:03:10]} 48.
Rh8 {[%clk 00:28:39]} {[%emt 00:00:35]} Bf6 {[%clk 00:13:35]} {[%emt 00:03:05]}
49. Rb8 {[%clk 00:28:47]} {[%emt 00:00:23]} Kc7 {[%clk 00:13:10]} {[%emt
00:00:55]} 50. Rf8 {[%clk 00:28:45]} {[%emt 00:00:31]} Bg5+ {[%clk 00:13:32]}
{[%emt 00:00:09]} 51. Kd3 {[%clk 00:28:53]} {[%emt 00:00:22]} Bh5 {[%clk
00:13:43]} {[%emt 00:00:19]} 52. Rg8 {[%clk 00:27:25]} {[%emt 00:01:58]} Bf4
{[%clk 00:13:44]} {[%emt 00:00:28]} 53. Rg7+ {[%clk 00:27:36]} {[%emt
00:00:20]} Kd8 {[%clk 00:11:53]} {[%emt 00:02:20]} 54. Rg8+ {[%clk 00:27:39]}
{[%emt 00:00:28]} Be8 {[%clk 00:12:05]} {[%emt 00:00:18]} 55. Rg7 {[%clk
00:27:35]} {[%emt 00:00:33]} Bd7 {[%clk 00:11:15]} {[%emt 00:01:21]} 56. Rg8+
{[%clk 00:27:22]} {[%emt 00:00:43]} Kc7 {[%clk 00:11:12]} {[%emt 00:00:31]} 57.
Rg7 {[%clk 00:26:46]} {[%emt 00:01:07]} Bd6 {[%clk 00:10:57]} {[%emt 00:00:44]}
58. Rg8 {[%clk 00:26:49]} {[%emt 00:00:28]} Kc6 {[%clk 00:10:08]} {[%emt
00:01:20]} 59. Rg6 {[%clk 00:26:58]} {[%emt 00:00:21]} Bc7 {[%clk 00:10:00]}
{[%emt 00:00:37]} 60. Rh6 {[%clk 00:27:12]} {[%emt 00:00:15]} Kd6 {[%clk
00:10:17]} {[%emt 00:00:15]} 61. Rh8 {[%clk 00:27:14]} {[%emt 00:00:28]} Bc6
{[%clk 00:10:14]} {[%emt 00:00:32]} 62. Rh6 {[%clk 00:27:32]} {[%emt 00:00:12]}
Bb5+ {[%clk 00:09:56]} {[%emt 00:00:49]} 63. Kd2 {[%clk 00:27:28]} {[%emt
00:00:34]} Bc6 {[%clk 00:09:45]} {[%emt 00:00:42]} 64. Rg6 {[%clk 00:27:45]}
{[%emt 00:00:12]} b5 {[%clk 00:09:44]} {[%emt 00:00:30]} 65. Rg8 {[%clk
00:27:46]} {[%emt 00:00:29]} b4 {[%clk 00:09:34]} {[%emt 00:00:40]} 66. Rh8
{[%clk 00:26:08]} {[%emt 00:02:08]} Bb5 {[%clk 00:09:43]} {[%emt 00:00:22]} 67.
Rg8 {[%clk 00:25:59]} {[%emt 00:00:38]} bxc3+ {[%clk 00:08:19]} {[%emt
00:01:54]} 68. bxc3 {[%clk 00:26:19]} {[%emt 00:00:10]} Bc6 {[%clk 00:08:08]}
{[%emt 00:00:41]} 69. Kc2 {[%clk 00:26:34]} {[%emt 00:00:15]} a4 {[%clk
00:07:55]} {[%emt 00:00:44]} 70. Rg7 {[%clk 00:26:35]} {[%emt 00:00:29]} Bb6
{[%clk 00:08:04]} {[%emt 00:00:20]} 71. Rg8 {[%clk 00:26:42]} {[%emt 00:00:23]}
Bc7 {[%clk 00:06:21]} {[%emt 00:02:14]} 72. Kb2 {[%clk 00:26:59]} {[%emt
00:00:14]} Ba5 {[%clk 00:06:20]} {[%emt 00:00:29]} 73. Rg7 {[%clk 00:27:06]}
{[%emt 00:00:24]} Bd7 {[%clk 00:05:06]} {[%emt 00:01:43]} 74. Rg8 {[%clk
00:27:25]} {[%emt 00:00:12]} e5 {[%clk 00:04:04]} {[%emt 00:01:32]} 75. Ra8
{[%clk 00:27:17]} {[%emt 00:00:38]} Bc7 {[%clk 00:03:53]} {[%emt 00:00:41]} 76.
Ra6+ {[%clk 00:27:12]} {[%emt 00:00:35]} Ke7 {[%clk 00:04:04]} {[%emt
00:00:19]} 77. Ra7 {[%clk 00:27:16]} {[%emt 00:00:26]} Bd6 {[%clk 00:04:15]}
{[%emt 00:00:19]} 78. Ra5 {[%clk 00:27:20]} {[%emt 00:00:26]} Ke6 {[%clk
00:04:09]} {[%emt 00:00:36]} 79. c4 {[%clk 00:26:41]} {[%emt 00:01:09]} dxc4
{[%clk 00:04:02]} {[%emt 00:00:37]} 80. d5+ {[%clk 00:27:04]} {[%emt 00:00:07]}
Ke7 {[%clk 00:04:09]} {[%emt 00:00:22]} 81. Kc3 {[%clk 00:27:28]} {[%emt
00:00:07]} e4 {[%clk 00:02:28]} {[%emt 00:02:12]} 82. Kxc4 {[%clk 00:27:41]}
{[%emt 00:00:16]} Be5 {[%clk 00:02:44]} {[%emt 00:00:13]} 83. Ra6 {[%clk
00:27:21]} {[%emt 00:00:52]} f4 {[%clk 00:03:05]} {[%emt 00:00:08]} 84. Rh6
{[%clk 00:27:23]} {[%emt 00:00:27]} e3 {[%clk 00:02:01]} {[%emt 00:01:35]} 85.
fxe3 {[%clk 00:27:30]} {[%emt 00:00:23]} f3 {[%clk 00:01:59]} {[%emt 00:00:31]}
0-1

[Event "Veteran-SM 65+ 2025"]
[Site "Uppsala, Sweden"]
[Date "2025.06.30"]
[Round "3.4"]
[White "Green, Per"]
[Black "Sigeman, Johan"]
[Result "0-1"]
[TimeControl "90 min for 40 move + 30 min with an increment of 30 sec starting move 1"]
[WhiteFideId "1703811"]
[BlackFideId "1705601"]
[WhiteElo "1954"]
[BlackElo "2012"]

1. c4 {[%clk 01:30:50]} {[%emt 00:00:09]} e6 {[%clk 01:28:55]} {[%emt
00:02:06]} 2. g3 {[%clk 01:30:57]} {[%emt 00:00:23]} d5 {[%clk 01:29:18]}
{[%emt 00:00:07]} 3. Bg2 {[%clk 01:30:55]} {[%emt 00:00:32]} d4 {[%clk
01:29:09]} {[%emt 00:00:39]} 4. Nf3 {[%clk 01:30:34]} {[%emt 00:00:51]} c5
{[%clk 01:29:17]} {[%emt 00:00:21]} 5. e3 {[%clk 01:29:57]} {[%emt 00:01:07]}
Nc6 {[%clk 01:29:41]} {[%emt 00:00:07]} 6. exd4 {[%clk 01:29:54]} {[%emt
00:00:32]} cxd4 {[%clk 01:30:04]} {[%emt 00:00:07]} 7. d3 {[%clk 01:29:07]}
{[%emt 00:01:17]} Nf6 {[%clk 01:29:45]} {[%emt 00:00:49]} 8. O-O {[%clk
01:29:29]} {[%emt 00:00:09]} Bd6 {[%clk 01:29:35]} {[%emt 00:00:40]} 9. Nbd2
{[%clk 01:29:37]} {[%emt 00:00:22]} O-O {[%clk 01:29:45]} {[%emt 00:00:20]} 10.
Ng5 {[%clk 01:29:56]} {[%emt 00:00:11]} e5 {[%clk 01:28:53]} {[%emt 00:01:23]}
11. Nde4 {[%clk 01:29:11]} {[%emt 00:01:14]} Bc7 {[%clk 01:23:36]} {[%emt
00:05:47]} 12. Nxf6+ {[%clk 01:23:54]} {[%emt 00:05:47]} Qxf6 {[%clk 01:20:14]}
{[%emt 00:03:52]} 13. a3 {[%clk 01:22:28]} {[%emt 00:01:57]} a5 {[%clk
01:18:35]} {[%emt 00:02:08]} 14. b3 {[%clk 01:22:02]} {[%emt 00:00:55]} h6
{[%clk 01:16:48]} {[%emt 00:02:18]} 15. Ne4 {[%clk 01:17:40]} {[%emt 00:04:51]}
Qe7 {[%clk 01:13:01]} {[%emt 00:04:18]} 16. Re1 {[%clk 01:10:55]} {[%emt
00:07:15]} f5 {[%clk 01:09:02]} {[%emt 00:04:26]} 17. Nd2 {[%clk 01:10:58]}
{[%emt 00:00:29]} Qf6 {[%clk 01:08:24]} {[%emt 00:01:08]} 18. Rb1 {[%clk
01:06:25]} {[%emt 00:05:03]} Bd7 {[%clk 01:04:59]} {[%emt 00:03:54]} 19. Bd5+
{[%clk 00:55:00]} {[%emt 00:11:55]} Kh8 {[%clk 01:00:22]} {[%emt 00:05:07]} 20.
Qf3 {[%clk 00:52:36]} {[%emt 00:02:54]} e4 {[%clk 00:54:39]} {[%emt 00:06:13]}
21. dxe4 {[%clk 00:47:58]} {[%emt 00:05:08]} Ne5 {[%clk 00:52:14]} {[%emt
00:02:56]} 22. Qg2 {[%clk 00:45:53]} {[%emt 00:02:34]} f4 {[%clk 00:49:51]}
{[%emt 00:02:53]} 23. f3 {[%clk 00:32:41]} {[%emt 00:13:42]} fxg3 {[%clk
00:25:55]} {[%emt 00:24:26]} 24. hxg3 {[%clk 00:32:28]} {[%emt 00:00:43]} Nxf3+
{[%clk 00:24:51]} {[%emt 00:01:34]} 25. Nxf3 {[%clk 00:32:45]} {[%emt
00:00:13]} Qxf3 {[%clk 00:25:16]} {[%emt 00:00:05]} 26. e5 {[%clk 00:30:11]}
{[%emt 00:03:04]} Qf5 {[%clk 00:23:22]} {[%emt 00:02:25]} 27. Bf4 {[%clk
00:14:05]} {[%emt 00:16:35]} Rae8 {[%clk 00:23:29]} {[%emt 00:00:23]} 28. Be4
{[%clk 00:12:32]} {[%emt 00:02:02]} Qh5 {[%clk 00:22:14]} {[%emt 00:01:47]} 29.
Bxb7 {[%clk 00:10:52]} {[%emt 00:02:10]} Bxe5 {[%clk 00:16:20]} {[%emt
00:06:23]} 30. Bxe5 {[%clk 00:10:56]} {[%emt 00:00:26]} Rxe5 {[%clk 00:16:44]}
{[%emt 00:00:06]} 31. Rxe5 {[%clk 00:05:00]} {[%emt 00:06:25]} Qxe5 {[%clk
00:17:13]} {[%emt 00:00:03]} 32. Rf1 {[%clk 00:02:35]} {[%emt 00:02:55]} Qe3+
{[%clk 00:08:33]} {[%emt 00:09:10]} 33. Kh2 {[%clk 00:02:38]} {[%emt 00:00:26]}
Rf5 {[%clk 00:08:38]} {[%emt 00:00:26]} 34. Rxf5 {[%clk 00:02:29]} {[%emt
00:00:38]} Bxf5 {[%clk 00:09:07]} {[%emt 00:00:02]} 35. c5 {[%clk 00:01:05]}
{[%emt 00:01:54]} d3 {[%clk 00:04:46]} {[%emt 00:04:51]} 36. Bf3 {[%clk
00:00:44]} {[%emt 00:00:50]} Qxc5 {[%clk 00:05:01]} {[%emt 00:00:15]} 37. g4
{[%clk 00:00:32]} {[%emt 00:00:42]} Bg6 {[%clk 00:04:58]} {[%emt 00:00:34]} 38.
b4 {[%clk 00:00:54]} {[%emt 00:00:08]} axb4 {[%clk 00:05:15]} {[%emt 00:00:12]}
39. axb4 {[%clk 00:00:38]} {[%emt 00:00:46]} Qxb4 {[%clk 00:05:37]} {[%emt
00:00:09]} 40. Bd1 {[%clk 00:00:54]} {[%emt 00:00:13]} Qf4+ {[%clk 00:04:45]}
{[%emt 00:01:21]} 41. Kg1 {[%clk 00:29:34]} {[%emt 00:01:50]} Qe3+ {[%clk
00:33:54]} {[%emt 00:01:22]} 42. Kh2 {[%clk 00:29:43]} {[%emt 00:00:22]} Qf4+
{[%clk 00:30:41]} {[%emt 00:03:42]} 43. Kg1 {[%clk 00:30:03]} {[%emt 00:00:10]}
Be4 {[%clk 00:31:05]} {[%emt 00:00:07]} 44. Qh3 {[%clk 00:29:34]} {[%emt
00:00:58]} Qd2 {[%clk 00:26:06]} {[%emt 00:05:29]} 45. Qf1 {[%clk 00:29:17]}
{[%emt 00:00:47]} Kh7 {[%clk 00:24:57]} {[%emt 00:01:39]} 46. Bb3 {[%clk
00:27:43]} {[%emt 00:02:05]} Qe3+ {[%clk 00:24:30]} {[%emt 00:00:56]} 0-1

[Event "Veteran-SM 65+ 2025"]
[Site "Uppsala, Sweden"]
[Date "2025.06.30"]
[Round "3.5"]
[White "Larsson, Per-Olov"]
[Black "Carlsson, Ingvar"]
[Result "1/2-1/2"]
[TimeControl "90 min for 40 move + 30 min with an increment of 30 sec starting move 1"]
[WhiteFideId "1717774"]
[BlackFideId "1702670"]
[WhiteElo "1914"]
[BlackElo "1987"]

1. e4 {[%clk 01:30:53]} {[%emt 00:00:06]} e6 {[%clk 01:30:48]} {[%emt
00:00:12]} 2. d4 {[%clk 01:30:58]} {[%emt 00:00:26]} d5 {[%clk 01:31:10]}
{[%emt 00:00:08]} 3. Nc3 {[%clk 01:31:06]} {[%emt 00:00:22]} Nf6 {[%clk
01:31:27]} {[%emt 00:00:12]} 4. Bg5 {[%clk 01:30:59]} {[%emt 00:00:37]} Bb4
{[%clk 01:31:41]} {[%emt 00:00:16]} 5. e5 {[%clk 01:30:42]} {[%emt 00:00:47]}
h6 {[%clk 01:31:56]} {[%emt 00:00:15]} 6. Bd2 {[%clk 01:30:23]} {[%emt
00:00:48]} Bxc3 {[%clk 01:32:13]} {[%emt 00:00:14]} 7. bxc3 {[%clk 01:30:13]}
{[%emt 00:00:41]} Ne4 {[%clk 01:32:33]} {[%emt 00:00:09]} 8. Qg4 {[%clk
01:29:46]} {[%emt 00:00:58]} g6 {[%clk 01:32:45]} {[%emt 00:00:17]} 9. Bd3
{[%clk 01:29:16]} {[%emt 00:01:00]} Nxd2 {[%clk 01:33:02]} {[%emt 00:00:13]} 10.
Kxd2 {[%clk 01:29:37]} {[%emt 00:00:09]} c5 {[%clk 01:33:28]} {[%emt 00:00:05]}
11. Nf3 {[%clk 01:29:00]} {[%emt 00:01:06]} c4 {[%clk 01:26:25]} {[%emt
00:07:33]} 12. Be2 {[%clk 01:27:56]} {[%emt 00:01:34]} Bd7 {[%clk 01:25:00]}
{[%emt 00:01:55]} 13. h4 {[%clk 01:26:04]} {[%emt 00:02:22]} Qe7 {[%clk
01:24:27]} {[%emt 00:01:03]} 14. Rhb1 {[%clk 01:23:45]} {[%emt 00:02:48]} Bc6
{[%clk 01:24:30]} {[%emt 00:00:27]} 15. Qf4 {[%clk 01:22:14]} {[%emt 00:02:02]}
Nd7 {[%clk 01:24:28]} {[%emt 00:00:32]} 16. Nh2 {[%clk 01:18:51]} {[%emt
00:03:53]} O-O-O {[%clk 01:01:33]} {[%emt 00:23:25]} 17. Nf3 {[%clk 01:09:02]}
{[%emt 00:10:20]} f5 {[%clk 00:58:29]} {[%emt 00:03:32]} 18. g4 {[%clk
01:02:13]} {[%emt 00:07:19]} Qa3 {[%clk 00:51:15]} {[%emt 00:07:44]} 19. g5
{[%clk 00:58:43]} {[%emt 00:04:00]} h5 {[%clk 00:51:08]} {[%emt 00:00:37]} 20.
Bd1 {[%clk 00:55:02]} {[%emt 00:04:11]} Nb6 {[%clk 00:50:17]} {[%emt 00:01:21]}
21. Ng1 {[%clk 00:54:26]} {[%emt 00:01:05]} Na4 {[%clk 00:50:24]} {[%emt
00:00:23]} 22. Ne2 {[%clk 00:54:15]} {[%emt 00:00:40]} Rhf8 {[%clk 00:49:17]}
{[%emt 00:01:38]} 23. Qe3 {[%clk 00:44:42]} {[%emt 00:10:03]} Bd7 {[%clk
00:20:25]} {[%emt 00:29:22]} 24. f4 {[%clk 00:44:26]} {[%emt 00:00:46]} a5
{[%clk 00:20:23]} {[%emt 00:00:32]} 25. Ke1 {[%clk 00:43:08]} {[%emt 00:01:48]}
Kc7 {[%clk 00:18:38]} {[%emt 00:02:16]} 26. Qc1 {[%clk 00:42:05]} {[%emt
00:01:33]} Qxc1 {[%clk 00:17:28]} {[%emt 00:01:39]} 1/2-1/2

[Event "Veteran-SM 65+ 2025"]
[Site "Uppsala, Sweden"]
[Date "2025.06.30"]
[Round "3.6"]
[White "Vrabec, Josip"]
[Black "Magnussen, Pal"]
[Result "0-1"]
[TimeControl "90 min for 40 move + 30 min with an increment of 30 sec starting move 1"]
[WhiteFideId "1714953"]
[BlackFideId "1711814"]
[WhiteElo "1908"]
[BlackElo "1954"]

1. e4 {[%clk 01:30:59]} e5 {[%clk 01:30:45]} {[%emt 00:00:15]} 2. Nf3 {[%clk
01:31:19]} {[%emt 00:00:10]} Nc6 {[%clk 01:30:54]} {[%emt 00:00:22]} 3. Bb5
{[%clk 01:31:42]} {[%emt 00:00:06]} f5 {[%clk 01:31:15]} {[%emt 00:00:09]} 4.
exf5 {[%clk 01:28:31]} {[%emt 00:03:41]} e4 {[%clk 01:30:53]} {[%emt 00:00:52]}
5. Qe2 {[%clk 01:28:26]} {[%emt 00:00:34]} Qe7 {[%clk 01:30:57]} {[%emt
00:00:28]} 6. Bxc6 {[%clk 01:28:02]} {[%emt 00:00:53]} bxc6 {[%clk 01:30:02]}
{[%emt 00:01:25]} 7. Nd4 {[%clk 01:28:05]} {[%emt 00:00:27]} c5 {[%clk
01:29:33]} {[%emt 00:01:00]} 8. Nb3 {[%clk 01:28:06]} {[%emt 00:00:28]} d5
{[%clk 01:29:13]} {[%emt 00:00:51]} 9. Nc3 {[%clk 01:24:46]} {[%emt 00:03:49]}
Nf6 {[%clk 01:27:26]} {[%emt 00:02:18]} 10. d3 {[%clk 01:23:32]} {[%emt
00:01:44]} exd3 {[%clk 01:26:40]} {[%emt 00:01:16]} 11. Qxe7+ {[%clk 01:23:09]}
{[%emt 00:00:53]} Bxe7 {[%clk 01:26:53]} {[%emt 00:00:17]} 12. cxd3 {[%clk
01:22:44]} {[%emt 00:00:55]} Bxf5 {[%clk 01:24:08]} {[%emt 00:03:14]} 13. d4
{[%clk 01:15:08]} {[%emt 00:08:06]} c4 {[%clk 01:20:23]} {[%emt 00:04:15]} 14.
Nd2 {[%clk 01:14:17]} {[%emt 00:01:21]} Bd3 {[%clk 01:16:25]} {[%emt 00:04:28]}
15. Nf3 {[%clk 01:11:40]} {[%emt 00:03:07]} c5 {[%clk 01:10:30]} {[%emt
00:06:26]} 16. Bg5 {[%clk 01:05:23]} {[%emt 00:06:46]} cxd4 {[%clk 01:00:22]}
{[%emt 00:10:36]} 17. Bxf6 {[%clk 00:59:21]} {[%emt 00:06:33]} Bxf6 {[%clk
00:59:02]} {[%emt 00:01:50]} 18. Nxd5 {[%clk 00:59:35]} {[%emt 00:00:16]} Rd8
{[%clk 00:58:55]} {[%emt 00:00:37]} 19. Nxf6+ {[%clk 00:59:24]} {[%emt
00:00:41]} gxf6 {[%clk 00:59:18]} {[%emt 00:00:08]} 20. O-O-O {[%clk 00:54:47]}
{[%emt 00:05:06]} Kf7 {[%clk 00:59:03]} {[%emt 00:00:46]} 21. Rhe1 {[%clk
00:52:20]} {[%emt 00:02:56]} Rhg8 {[%clk 00:57:16]} {[%emt 00:02:18]} 22. g3
{[%clk 00:51:18]} {[%emt 00:01:29]} Rd7 {[%clk 00:57:12]} {[%emt 00:00:37]} 23.
b3 {[%clk 00:48:51]} {[%emt 00:02:56]} Rc8 {[%clk 00:56:08]} {[%emt 00:01:34]}
24. bxc4 {[%clk 00:46:00]} {[%emt 00:03:22]} Rxc4+ {[%clk 00:53:36]} {[%emt
00:03:02]} 25. Kd2 {[%clk 00:43:21]} {[%emt 00:03:08]} Bf5 {[%clk 00:52:39]}
{[%emt 00:01:28]} 26. Rc1 {[%clk 00:43:12]} {[%emt 00:00:38]} Ra4 {[%clk
00:51:52]} {[%emt 00:01:17]} 27. Ra1 {[%clk 00:43:23]} {[%emt 00:00:18]} Rb7
{[%clk 00:49:29]} {[%emt 00:02:55]} 28. Rec1 {[%clk 00:41:11]} {[%emt
00:02:41]} Be4 {[%clk 00:41:43]} {[%emt 00:08:16]} 29. Ng1 {[%clk 00:38:52]}
{[%emt 00:02:48]} Rb2+ {[%clk 00:39:36]} {[%emt 00:02:38]} 30. Ke1 {[%clk
00:39:19]} {[%emt 00:00:03]} d3 {[%clk 00:38:27]} {[%emt 00:01:41]} 31. Rd1
{[%clk 00:39:26]} {[%emt 00:00:21]} Raxa2 {[%clk 00:37:51]} {[%emt 00:01:08]}
32. Rxa2 {[%clk 00:39:40]} {[%emt 00:00:15]} Rxa2 {[%clk 00:38:11]} {[%emt
00:00:10]} 33. f3 {[%clk 00:34:56]} {[%emt 00:05:13]} Bg6 {[%clk 00:37:11]}
{[%emt 00:01:29]} 34. Rd2 {[%clk 00:32:32]} {[%emt 00:02:55]} Ra1+ {[%clk
00:27:35]} {[%emt 00:10:06]} 35. Kf2 {[%clk 00:31:34]} {[%emt 00:01:28]} a5
{[%clk 00:27:27]} {[%emt 00:00:39]} 36. Nh3 {[%clk 00:31:51]} {[%emt 00:00:12]}
Rh1 {[%clk 00:27:06]} {[%emt 00:00:54]} 37. Kg2 {[%clk 00:31:52]} {[%emt
00:00:27]} Rc1 {[%clk 00:27:25]} {[%emt 00:00:10]} 38. Kf2 {[%clk 00:31:38]}
{[%emt 00:00:43]} Rc2 {[%clk 00:25:38]} {[%emt 00:02:19]} 39. Ke3 {[%clk
00:30:39]} {[%emt 00:01:28]} a4 {[%clk 00:25:24]} {[%emt 00:00:44]} 40. Nf4
{[%clk 00:30:10]} {[%emt 00:00:58]} Rxd2 {[%clk 00:25:16]} {[%emt 00:00:40]} 41.
Kxd2 {[%clk 00:30:19]} {[%emt 00:00:21]} a3 {[%clk 00:25:38]} {[%emt 00:00:08]}
0-1